Cogmind - Beta 13 @@@ ROGUE MODE // 2024.04.10 @ 16:41:50 Player: TechnicalFowl Result: Destroyed by G-47 Trooper with Particle Gun Performance ------------- Evolutions (2) 1000 Regions Visited (3) 600 Robots Destroyed (72) 360 Value Destroyed (1683) 1683 Prototype IDs (6) 120 Alien Tech Used (0) 0 Bonus (75) 75 TOTAL SCORE: 3838 Bonus ------- High Alert Combat Kills 75 Cogmind --------- Core Integrity 0/550 Matter 105/300 Energy 100/100 System Corruption 0% Temperature Warm (185) Movement Core (350) Ox6 Location -8/Materials Parts ------- > --- POWER (1) -------- (None) > --- PROPULSION (4) --- (None) > --- UTILITY (3) ------ Large Storage Unit > --- WEAPON (3) ------- (None) > --- INVENTORY (15) --- Light Ion Engine Light Ion Engine Improved Flight Unit Improved Flight Unit Improved Flight Unit Improved Flight Unit Transmission Jammer Hardened Light Armor Plating Hardened Light Armor Plating Small Laser Beam Rifle Improved Medium Laser Advanced Beam Cannon Mini Grenade Launcher Peak State ------------ > --- POWER ------------ Cooled Ion Engine > --- PROPULSION ------- Wheel Armored Wheel > --- UTILITY ---------- Improved Heat Sink Large Storage Unit Sensor Array > --- WEAPON ----------- Advanced Beam Cannon Advanced Beam Cannon Improved Light Cannon > --- INVENTORY -------- Light Ion Engine Light Ion Engine Improved Flight Unit Improved Flight Unit Improved Flight Unit Improved Flight Unit Heat Sink Transmission Jammer Hardened Light Armor Plating Hardened Light Armor Plating Small Laser Small Laser Beam Rifle Improved Medium Laser Mini Grenade Launcher [Rating: 22] Favorites ----------- Power Cooled Ion Engine Engine Cooled Ion Engine Power Core Light Nuclear Core Propulsion Compact Wheel Leg Aluminum Leg Wheel Compact Wheel Flight Unit Improved Flight Unit Utility Large Storage Unit Device Sensor Array Storage Large Storage Unit Processor Targeting Computer Weapon Assault Rifle Energy Gun Improved Medium Laser Energy Cannon Advanced Beam Cannon Ballistic Gun Assault Rifle Ballistic Cannon Improved Light Cannon Launcher Mini Grenade Launcher Build | -11 -10 -9 -8 ------- Run | Yrd Mat Mat Mat Slots Evolved 4 | . . 2 2 Power . | . . . . Propulsion 2 | . . . 2 Utility 1 | . . 1 . Weapon 1 | . . 1 . Parts Attached 51 | 6 6 33 6 Power 8 | 1 1 5 1 Engine 7 | 1 1 5 . Core 1 | . . . 1 Reactor . | . . . . Propulsion 12 | 2 . 10 . Treads . | . . . . Leg 3 | . . 3 . Wheel 8 | 2 . 6 . Hover . | . . . . Flight 1 | . . 1 . Utility 9 | 1 3 4 1 Device 6 | . 2 3 1 Storage 2 | 1 1 . . Processor 1 | . . 1 . Hackware . | . . . . Protection . | . . . . Artifact . | . . . . Weapon 22 | 2 2 14 4 Energy Gun 7 | 2 . 5 . Energy Cannon 3 | . . 2 1 Ballistic Gun 8 | . 1 5 2 Ballistic Cannon 2 | . 1 1 . Launcher 2 | . . 1 1 Special Weapon . | . . . . Impact Weapon . | . . . . Slashing Weapon . | . . . . Piercing Weapon . | . . . . Special Melee Weapon . | . . . . Unidentified Prototypes 5 | . . 5 . Parts Lost 22 | . 2 11 9 Power 3 | . 1 1 1 Propulsion 7 | . 1 4 2 Utility 4 | . . 2 2 Weapon 8 | . . 4 4 Highest Loss Streak 9 | . 2 5 9 To Critical Strikes 1 | . . . 1 Average Slot Usage (%) 87 | . 90 90 72 Engine 9 | . 12 10 2 Wheel 16 | . 21 16 14 Device 17 | . 12 18 15 Storage 11 | . 14 11 9 Processor 1 | . . 2 . Energy Gun 11 | . 6 14 . Energy Cannon 5 | . . 4 12 Ballistic Gun 6 | . 8 6 4 Ballistic Cannon 6 | . 12 4 7 Naked Turns . | . . . . Heaviest Build 42 | 10 32 42 42 Greatest Support 32 | 26 26 32 22 Greatest Overweight (x) 7 | . 3 7 6 Average Overweight (x) 1 | . 1 1 1 Largest Inventory Capacity 15 | 8 15 15 15 Average Capacity 14 | 6 14 15 15 Most Carried 15 | 5 6 15 15 Average Carried 8 | 1 3 8 14 Final Capacity 15 | 8 15 15 15 Final Carried 15 | 1 6 15 14 Class Distribution -------------------- 53% | Skirmisher 27% | Mutant 12% | Scavenger-Skirmisher 5% | Gunner Dominant Class ---------------- Mutant | -10/Materials Skirmisher | -9/Materials Skirmisher | -8/Materials Resources | -11 -10 -9 -8 ----------- Run | Yrd Mat Mat Mat Matter Collected 1272 | 260 183 762 67 Remotely 22 | . . 22 . Salvage Created 2840 | 82 228 2275 255 Parts 155 | 1 11 123 20 Haulers Intercepted 7 | . . 6 1 Recyclers Shooed 5 | . . 5 . Parts Field Recycled . | . . . . Retrieved Matter . | . . . . Parts Self-Destructed . | . . . . Prevented . | . . . . Kills | -11 -10 -9 -8 ------- Run | Yrd Mat Mat Mat Combat Hostiles Destroyed 41 | . 5 30 6 Guns 26 | . 1 24 1 Cannons 13 | . 4 5 4 AOE 1 | . . . 1 Classes Destroyed 8 | 1 1 6 . Worker 7 | . . 7 . Builder 3 | . . 2 1 Hauler 7 | . . 6 1 Recycler 9 | 1 1 7 . Watcher 5 | . . 4 1 Swarmer 5 | . . 2 3 Grunt 27 | . 5 20 2 Sentry 9 | . . 8 1 Best Kill Streak 8 | 1 3 8 3 Combat Bots Only 5 | . 3 5 3 Max Kills in Single Turn 2 | 1 1 2 1 Gunslinging 1 | . . 1 . Exploded 1 | . . . 1 Melee . | . . . . Uniques/NPCs Destroyed . | . . . . Combat | -11 -10 -9 -8 -------- Run | Yrd Mat Mat Mat Hostile Shots Fired 308 | . 36 197 75 Missed 89 | . 13 62 14 Damage Taken 3078 | . 285 1603 1190 Core 975 | . 68 351 556 Absorbed by Shields . | . . . . Core Remaining (%) 61 | 100 72 12 . Volleys Fired 175 | 5 19 120 31 Largest 3 | 2 2 3 3 Hottest 177 | 80 55 177 175 Shots Fired 453 | 10 38 324 81 Gun 286 | 10 19 237 20 Cannon 166 | . 19 87 60 Launcher 1 | . . . 1 Special . | . . . . Kinetic 225 | . 38 144 43 Thermal 227 | 10 . 180 37 Explosive 1 | . . . 1 Electromagnetic . | . . . . Robot Hit Streak 15 | 10 8 15 5 Robot Miss Streak 6 | . 4 5 6 Penetration Max . | . . . . Secondary Targets 4 | . . 4 . Max Gunslinging Chain 1 | . . 1 . Shots Hit Robots 272 | 10 24 196 42 Core Hits 112 | 2 11 86 13 Critical Kills 2 | . . 1 1 Critical Parts Destroyed . | . . . . Critical Strikes 4 | . . 3 1 Burn 2 | . . 2 . Meltdown 2 | . . 1 1 Melee Attacks . | . . . . Impact . | . . . . Slashing . | . . . . Piercing . | . . . . Sneak Attacks . | . . . . Combat Hostiles . | . . . . Follow-up Attacks . | . . . . Damage Inflicted 4590 | 111 382 3257 840 Guns 2772 | 111 139 2411 111 Cannons 1742 | . 243 846 653 Explosions 76 | . . . 76 Melee . | . . . . Ramming . | . . . . Kinetic 2113 | . 382 1335 396 Thermal 2401 | 111 . 1922 368 Explosive 76 | . . . 76 Electromagnetic . | . . . . Impact . | . . . . Slashing . | . . . . Piercing . | . . . . Highest Corruption . | . . . . Average Corruption . | . . . . Corruption Purged . | . . . . Corruption Blocked . | . . . . Overload Shots . | . . . . Overflow Damage 7 | . . 2 5 Projectiles 7 | . . 2 5 Explosions . | . . . . Melee . | . . . . Knockbacks 8 | . . 4 4 Impact . | . . . . Kinetic 8 | . . 4 4 Secondary . | . . . . Self-Inflicted Damage . | . . . . Shots . | . . . . Rammed . | . . . . Targets Rammed . | . . . . Kicked . | . . . . Crushed . | . . . . Highest Temperature 606 | 110 16 465 606 Average Temperature 110 | 62 8 94 210 Received Heat Transfer 1122 | . 171 714 237 Effects 17 | . . 4 13 Shutdowns 3 | . . 1 2 Energy Bleed 3 | . . 2 1 Matter Decay 3 | . . . 3 Short Circuit 2 | . . 1 1 Damage (minor) 1 | . . . 1 Damage (major) 2 | . . . 2 Damage (core) 3 | . . . 3 Siege Activations . | . . . . Robots Corrupted . | . . . . Combat Hostiles . | . . . . Parts Fried . | . . . . Impact Corruptions . | . . . . Robots Melted 2 | . . 1 1 Combat Hostiles 1 | . . 1 . Parts Melted 12 | 2 . 10 . Heat Transferred 5287 | 250 . 4371 666 Parts Sabotaged . | . . . . Parts Stolen . | . . . . Parts Stripped . | . . . . Power Chain Reactions . | . . . . Alert | -11 -10 -9 -8 ------- Run | Yrd Mat Mat Mat Peak Influence 642 | 5 130 642 430 Initial 232 | . 3 54 232 Average 267 | 1 50 308 333 Maximum Alert Level 2 | . . 2 2 Low Security (%) 36 | 100 100 28 . Level 1 42 | . . 43 89 Level 2 21 | . . 28 10 Level 3 . | . . . . Level 4 . | . . . . Level 5 . | . . . . High Security . | . . . . Max Security . | . . . . Squads Dispatched 7 | . 1 3 3 Investigation 4 | . 1 2 1 Extermination . | . . . . Reinforcement 3 | . . 1 2 Assault . | . . . . Garrison . | . . . . Intercept . | . . . . Searches Triggered . | . . . . Construction Impeded . | . . . . Haulers Reinforced . | . . . . Active Scanning Responses . | . . . . Cargo Convoy Interrupts . | . . . . Stealth | -11 -10 -9 -8 --------- Run | Yrd Mat Mat Mat Distress Signals 3 | . . 3 . Communications Jammed . | . . . . Distress Signals . | . . . . Times Spotted 63 | . 6 44 13 Peak Tracking Total 6 | . 3 6 6 Tactical Retreats 1 | . . . 1 Traps | -11 -10 -9 -8 ------- Run | Yrd Mat Mat Mat Traps Triggered 3 | . 1 1 1 Indirectly . | . . . . Trap Hack Attempts . | . . . . Triggered . | . . . . Disarmed . | . . . . Reprogrammed . | . . . . Reused . | . . . . Traps Extracted . | . . . . Installed . | . . . . Triggered . | . . . . Machines | -11 -10 -9 -8 ---------- Run | Yrd Mat Mat Mat Machines Disabled 4 | . . 2 2 Max in Single Turn 1 | . . 1 1 Garrison Access 1 | . . . 1 Machines Repaired . | . . . . Machines Dismantled . | . . . . Machines Sabotaged . | . . . . Overloaded Fab Kills . | . . . . Hacking | -11 -10 -9 -8 --------- Run | Yrd Mat Mat Mat Machines Accessed 7 | . 1 4 2 Terminals 6 | . 1 4 1 Fabricators . | . . . . Repair Stations . | . . . . Recycling Units . | . . . . Scanalyzers . | . . . . Garrison Access 1 | . . . 1 Total Hacks 17 | . 3 11 3 Successful 7 | . 1 5 1 Failed 10 | . 2 6 2 Catastrophic 1 | . . 1 . Database Lockouts . | . . . . Manual 16 | . 3 11 2 Terminals 16 | . 3 11 2 Fabricators . | . . . . Repair Stations . | . . . . Recycling Units . | . . . . Scanalyzers . | . . . . Garrison Access 1 | . . . 1 Terminal Hacks 6 | . 1 5 . Prototype ID Bank 1 | . . 1 . Branch Access Points 2 | . 1 1 . Transport Status 1 | . . 1 . Hauler Manifests 2 | . . 2 . Fabricator Hacks . | . . . . Repair Station Hacks . | . . . . Recycling Unit Hacks . | . . . . Scanalyzer . | . . . . Garrison Access Hacks 1 | . . . 1 Seal Access 1 | . . . 1 Unauthorized Hacks . | . . . . Terminals . | . . . . Fabricators . | . . . . Repair Stations . | . . . . Recycling Units . | . . . . Scanalyzers . | . . . . Garrison Access . | . . . . Data Cores Recovered . | . . . . Used . | . . . . Hacking Detections 5 | . 1 3 1 Full Trace Events 2 | . 1 1 . Feedback Events . | . . . . Feedback Blocked . | . . . . Robot Schematics Acquired . | . . . . Robots Built . | . . . . Authchips . | . . . . Time . | . . . . Total Robot Build Rating . | . . . . Part Schematics Acquired . | . . . . Parts Built . | . . . . Authchips . | . . . . Time . | . . . . Total Part Build Rating . | . . . . Parts Repaired . | . . . . Time . | . . . . Parts Recycled . | . . . . Recycled Matter . | . . . . Retrieved Matter . | . . . . Retrieved Components . | . . . . Parts Scanalyzed . | . . . . Part Schematics Acquired . | . . . . Parts Damaged . | . . . . Bothacking | -11 -10 -9 -8 ------------ Run | Yrd Mat Mat Mat Used RIF Installer . | . . . . Robots Hacked . | . . . . Non-combat . | . . . . Combat . | . . . . Robot Hacks Applied . | . . . . Relay Couplers Released . | . . . . Fabnet Peak Effective % . | . . . . Robots Rewired . | . . . . Allies Hacked . | . . . . Hacks Repelled . | . . . . Allies | -11 -10 -9 -8 -------- Run | Yrd Mat Mat Mat Total Allies . | . . . . Largest Group . | . . . . Highest-Rated Group . | . . . . Highest-Rated Ally . | . . . . Total Orders . | . . . . Ally Attacks . | . . . . Total Damage . | . . . . Kills . | . . . . Allies Corrupted . | . . . . Allies Melted . | . . . . Intel | -11 -10 -9 -8 ------- Run | Yrd Mat Mat Mat Robot Analysis Total . | . . . . Derelict Logs Recovered . | . . . . Drone Launches . | . . . . Drone Recoveries . | . . . . Exploration | -11 -10 -9 -8 ------------- Run | Yrd Mat Mat Mat Turns Passed 1931 | 55 266 1349 261 Spaces Moved 1084 | 36 174 734 140 Core 19 | 12 . 5 2 Treads . | . . . . Legs 14 | . . 14 . Wheels 1051 | 24 174 715 138 Hover . | . . . . Flight . | . . . . Fastest Speed 50 | 50 90 100 100 Average Speed 114 | 76 109 119 103 Slowest Speed 400 | 90 125 400 350 Overloaded Moves . | . . . . Propulsion Burnouts . | . . . . Robots Hopped . | . . . . Cave-ins Triggered . | . . . . Exploration Rate (%) 30 | 3 34 63 21 Regions Visited 3 Branch Regions . Pre-discovered Areas . | . . . . Known Exits Taken . | . . . . Unknown Exits Taken 3 | 1 1 1 . Scrap Searched . | . . . . Spaces Dug . | . . . . Terrain Destroyed 13 | . . 4 9 Melee . | . . . . Projectile 7 | . . 4 3 AOE 6 | . . . 6 Terrain Rammed . | . . . . Walls Destroyed . | . . . . Machines Disabled . | . . . . Actions | -11 -10 -9 -8 --------- Run | Yrd Mat Mat Mat Total 1403 | 53 211 940 199 Wait 25 | . . 13 12 Move 1081 | 35 173 733 140 Hop . | . . . . Pick Up 51 | 7 10 31 3 Fast Attach 3 | . . 1 2 Attach 29 | 6 3 16 4 Detach 3 | . . 1 2 Swap 19 | . 3 16 . Drop 17 | . 3 9 5 Fire 175 | 5 19 120 31 Melee . | . . . . Ram . | . . . . Kick . | . . . . Crush . | . . . . Escape Stasis . | . . . . Rewire . | . . . . Trap . | . . . . Miscellaneous . | . . . . Route ------- -11/Scrapyard -10/Materials (discovered 3 exits: *Mat / Min x2) -9/Materials (discovered 3 exits: *Mat / *Min x2) -8/Materials (discovered 1 exit: [*Fac]) History --------- Turn | Location | Event 28 | -11/Scrapyard | Discovered new exit (range 15) 56 | -11/Scrapyard | Entered Materials 99 | -10/Materials | Identified exit to Mines 238 | -10/Materials | Discovered new exit (range 12) 305 | -10/Materials | Build established: Mutant 322 | -10/Materials | Entered another Materials area 322 | -9/Materials | Evolved 2 slots: Utility x1, Weapon x1 474 | -9/Materials | Lost 5 parts (1p1n1u2w) 609 | -9/Materials | Core integrity fell below 50% 629 | -9/Materials | Lost 3 parts (1n1u1w) 845 | -9/Materials | Discovered new exit (range 3) 1270 | -9/Materials | Build established: Skirmisher 1368 | -9/Materials | Discovered new exit (range 14) 1481 | -9/Materials | Identified exit to Mines 1508 | -9/Materials | Core integrity fell below 20% 1671 | -9/Materials | Entered another Materials area 1671 | -8/Materials | Evolved 2 slots: Propulsion x2 1800 | -8/Materials | Discovered new exit (range 16) 1914 | -8/Materials | Core integrity fell below 50% 1915 | -8/Materials | Core integrity fell below 20% 1932 | -8/Materials | Destroyed by G-47 Trooper with Particle Gun Last Messages --------------- 01921_ K-01 Serf collects debris. 01921_ R-06 Scavenger destroyed. 01922_ U-05 Engineer lays Concrete. 01923_ U-05 Engineer builds a Wall. 01923_ K-01 Serf collects debris. 01924_ U-05 Engineer lays Concrete. 01924_ Acquired Hvy. Assault Rifle. 01925_ U-05 Engineer lays Concrete. 01925_ U-05 Engineer builds a Wall. 01926_ U-05 Engineer lays Concrete. 01926_ K-01 Serf collects debris. 01927_ Penetrated by Slug. 01928_ U-05 Engineer lays Concrete. 01929_ K-01 Serf collects debris. 01930_ G-47 Trooper destroyed. 01930_ U-05 Engineer lays Concrete. 01930_ K-01 Serf collects debris. 01931_ U-05 Engineer lays Concrete. 01931_ Hvy. Assault Rifle destroyed. 01931_ U-05 Engineer lays Concrete. Map ----- +----------------------------------------------------+ | ?????????????????????# %!########## [%%#? | | ?????????????????????# *#????????# == =#? | | ?????????????????????# ## ##???????######+## | | ?????????????????????# ## ! #?????????# | | ?????????????????????# ##! [[!!#?????????# | | ?????????????????????+ ##!![[!!#?????????# | | ?????????????????????# #########?????????# ### | | ?????????????????????" #?????????????????# #?? | | ???????????????????? # ??????????????????#% #?? | | ????????????????????## ??????????????????+ #?? | | ?????????????????????# ????????????????? #% ### | | ?????????????????????# ????????????????? # | | ?????????????????????# ???????????????? ?# ### | | ????????????????????? ???????????????? ?# #?? | | ????????????????????? ??????????######### #?? | | ???????????????????????????????????# ! # #?? | | ???????????????????????????????????# + #?? | | ???????????????????????????????????# # #?? | | ?????????????#?????????????????????##+###### #?? | | ?????????????#/????????#######??????# #????# ##? | | ??????????????? "T??# ######## ##### #? | | ?????????????# " " # % #? | | ???????????????""" % + % T #? | | ???????????????""" # ! = | | ?????????????# """ ?#=% ###+###### # | | ?????????????# ##@= ## #?? ######## | | ?????????????# ;;*%=## """ #?? #??????? | | ?????????????????###";;;! ! ## """ #?? #??????? | | ??????????? %!! k h% ## """ #??? #??????? | | ?????????? !! u;" #??? #??????? | | ??????????? ! !! ;# ! ! #??? #??????? | | ??????????? k kk ;#######???? #??????? | | ???????????? !%= #?????????? #??????? | | ???????????? u *% ##?????????? ???????? | | ???????????? a k g #???????????????????? | | ????????????? ] #???????????????????? | | ????????????? g ##???????????????????? | | ?????????????? u ???????????????????? | | ?????????????? ##???????????????????? | | ???????????????? #########+#????????????????????? | | ??????????????????????????? ????????????????????? | | ??????????????????????????? ????????????????????? | | ??????????????????????????? ????????????????????? | | ???????????????????????????""????????????????????? | | ?????????????????????????????????????????????????? | | ?????????????????????????????????????????????????? | | ?????????????????????????????????????????????????? | | ?????????????????????????????????????????????????? | | ?????????????????????????????????????????????????? | | ?????????????????????????????????????????????????? | +----------------------------------------------------+ Best States ------------- Heat Dissipation 45 Energy Generation 14 Energy Capacity 280 Matter Stores 300 Matter Capacity 300 Sight Range 16 Robot Scan Range 14 Terrain Scan Density 10 ECM Strength 1 Evasion (%) 50 Targeting Accuracy 5 Item Schematics ----------------- None Robot Schematics ------------------ None Fabricated ------------ Nothing Alien Tech Used ----------------- None Achievements -------------- None Challenges ------------ None Game ------ Seed PowerHelicalBlaster Manual? 0 Play Time 00:19:27 Cumulative 8.3 hours Start 2024.04.10 @ 16:22:51 End 2024.04.10 @ 16:41:50 Sessions 1 Manual Loads 0 Difficulty Rogue Special Mode None Game No. 13 Rogue 13 Adventurer 0 Explorer 0 Win Type - Total 1 Types 1/0/0/0/0/0/0/0/0 Lore% 16 Gallery% 19 Achievement% 20 Wizard Run 0 Options --------- Layout 1 ASCII 0 Keyboard 0 Movement Mouse Keybinds 0 Fullscreen 0 Font 28/SmallcapsGlow Map View 59x39 Zoom Use 0% Tactical HUD 1 Map Filters NONE Filters NONE Steam 1 RUN: 182e854c-48d6-4710-95ff-efe047d33f49